bitfinex-derivatives/quotes_SOLF0:USTF0_20250903
["timestamp","ask_amount","ask_price","bid_price","bid_amount"]
[1756886217321,1.7552464,209.24,209.2,76.18325945]
[1756886217522,7.18,209.23,209.2,76.18325945]
[1756886217919,1.7552464,209.24,209.2,76.18325945]
[1756886218320,7.18,209.23,209.2,76.18325945]
[1756886218519,1.7552464,209.24,209.2,76.18325945]
[1756886219024,7.18,209.23,209.2,76.18325945]
[1756886219220,1.7552464,209.24,209.2,76.18325945]
[1756886219622,7.18,209.23,209.2,76.18325945]
[1756886221223,1.7552464,209.24,209.2,76.18325945]
[1756886221923,1.7552464,209.22,209.2,76.18325945]
[1756886222117,7.18,209.21,209.17,7.61]
[1756886222314,7.18,209.19,209.17,7.61]
[1756886222726,8.9352464,209.2,209.17,7.61]
[1756886224126,8.9352464,209.2,209.14,7.61]
[1756886226728,1.7552464,209.2,209.14,7.61]
[1756886226929,1.7552464,209.22,209.15,1.7552464]
[1756886227129,1.7552464,209.22,209.16,7.61]
[1756886228830,7.18,209.23,209.17,1.7552464]
[1756886229026,1.7552464,209.24,209.18,7.61]
[1756886231236,8.9352464,209.24,209.17,9.3652464]
[1756886234036,8.9352464,209.24,209.17,7.61]
[1756886234236,1.7552464,209.22,209.15,7.26]
[1756886235541,7.42,209.23,209.15,7.26]
[1756886238544,7.42,209.26,209.15,7.26]
[1756886238841,7.42,209.26,209.14,2.74382075]
[1756886238842,7.42,209.26,209.17,7.26]
[1756886239238,7.42,209.3,209.18,7.26]
[1756886241344,7.42,209.3,209.19,7.26]
[1756886244841,2.74382075,209.28,209.19,7.26]
[1756886245042,0.03576714,209.27,209.22,0.03246549]
[1756886245440,7.42,209.26,209.22,0.03246549]
[1756886245639,0.03576714,209.27,209.22,0.03246549]
[1756886245840,7.42,209.26,209.22,0.03246549]
[1756886246041,0.03576714,209.27,209.22,0.03246549]
[1756886246243,7.42,209.26,209.22,0.03246549]
[1756886246442,0.03576714,209.27,209.22,0.03246549]
[1756886246641,7.42,209.26,209.22,0.03246549]
[1756886247242,2.77958789,209.27,209.22,0.03246549]
[1756886247443,7.42,209.26,209.22,0.03246549]
[1756886247741,2.77958789,209.27,209.22,0.03246549]
[1756886248137,7.45576714,209.27,209.23,7.26]
[1756886248338,0.03576714,209.27,209.23,7.26]
[1756886248538,0.03576714,209.27,209.22,0.03246549]
[1756886249740,0.03576714,209.27,209.23,7.26]
[1756886249940,0.03576714,209.27,209.22,0.03246549]
[1756886250139,0.03576714,209.27,209.23,7.26]
[1756886250348,0.03576714,209.27,209.22,0.03246549]
[1756886250544,7.45576714,209.27,209.22,0.03246549]
[1756886250742,7.45576714,209.27,209.23,7.26]
[1756886250942,7.45576714,209.27,209.22,0.03246549]
[1756886251144,7.45576714,209.27,209.23,7.26]
[1756886251644,7.45576714,209.27,209.22,0.03246549]
[1756886251944,7.45576714,209.27,209.23,7.26]
[1756886252641,7.45576714,209.27,209.22,0.03246549]
[1756886252841,7.45576714,209.27,209.23,7.26]
[1756886253142,7.45576714,209.27,209.22,0.03246549]
[1756886253445,7.45576714,209.27,209.23,7.26]
[1756886254835,7.42,209.26,209.23,7.26]
[1756886258143,0.03576714,209.27,209.22,0.03246549]
[1756886258444,7.42,209.26,209.22,0.03246549]
[1756886258846,0.03576714,209.27,209.22,0.03246549]
[1756886259041,7.42,209.26,209.22,0.03246549]
[1756886259244,0.03576714,209.27,209.22,0.03246549]
[1756886259444,7.42,209.26,209.22,0.03246549]
[1756886259644,7.42,209.26,209.22,7.29246549]
[1756886259844,0.03576714,209.27,209.22,0.03246549]
[1756886260045,0.03576714,209.27,209.23,7.26]
[1756886260236,0.03576714,209.27,209.22,0.03246549]
[1756886260438,0.03576714,209.27,209.23,7.26]
[1756886260842,0.03576714,209.27,209.22,0.03246549]
[1756886261747,0.03576714,209.27,209.23,7.67]
[1756886262443,7.49576714,209.27,209.23,7.67]
[1756886262638,7.49576714,209.27,209.22,0.03246549]
[1756886263447,7.49576714,209.27,209.23,7.67]
[1756886263840,7.49576714,209.27,209.22,0.03246549]
[1756886264039,7.49576714,209.27,209.23,7.67]
[1756886264443,0.03576714,209.27,209.23,7.67]
[1756886264649,0.03576714,209.27,209.22,0.03246549]
[1756886264848,7.49576714,209.27,209.23,7.67]
[1756886266348,7.49576714,209.27,209.22,0.03246549]
[1756886266549,0.03576714,209.27,209.23,7.67]
[1756886266949,0.03576714,209.27,209.22,0.03246549]
[1756886267152,0.03576714,209.27,209.23,7.67]
[1756886267352,0.03576714,209.27,209.22,0.03246549]
[1756886267554,0.03576714,209.27,209.23,7.67]
[1756886267746,0.03576714,209.27,209.22,0.03246549]
[1756886267954,0.03576714,209.27,209.23,7.67]
[1756886268457,0.03576714,209.27,209.22,0.03246549]
[1756886268950,0.03576714,209.27,209.23,7.67]
[1756886269156,0.03576714,209.27,209.22,0.03246549]
[1756886269355,0.03576714,209.27,209.23,7.67]
[1756886269552,0.03576714,209.27,209.22,0.03246549]
[1756886269952,0.03576714,209.27,209.23,7.67]
[1756886270156,0.03576714,209.27,209.22,0.03246549]
[1756886270460,0.03576714,209.27,209.23,7.67]
[1756886271357,7.49576714,209.27,209.23,7.67]
[1756886271758,0.03576714,209.27,209.22,0.03246549]
[1756886271956,7.49576714,209.27,209.23,7.67]
[1756886272457,7.49576714,209.27,209.22,0.03246549]
[1756886273053,7.49576714,209.27,209.23,7.67]
[1756886273560,7.49576714,209.27,209.22,0.03246549]
[1756886273758,7.49576714,209.27,209.23,7.67]
[1756886274153,7.49576714,209.27,209.22,0.03246549]
[1756886274759,7.49576714,209.27,209.23,7.67]
[1756886275356,7.49576714,209.27,209.22,0.03246549]
[1756886275561,7.49576714,209.27,209.23,7.67]
[1756886275755,7.49576714,209.27,209.22,0.03246549]
[1756886275961,0.03576714,209.27,209.23,7.67]
[1756886276361,0.03576714,209.27,209.22,0.03246549]
[1756886276562,0.03576714,209.27,209.23,7.67]
[1756886277159,0.03576714,209.27,209.22,0.03246549]
[1756886277462,0.03576714,209.27,209.23,7.67]
[1756886277859,0.03576714,209.27,209.22,0.03246549]
[1756886278162,0.03576714,209.27,209.23,7.67]
[1756886278558,0.03576714,209.27,209.22,0.03246549]
[1756886279559,0.03576714,209.27,209.23,7.67]
[1756886279960,0.03576714,209.27,209.22,0.03246549]
[1756886280160,0.03576714,209.27,209.23,7.67]
[1756886280565,0.03576714,209.27,209.22,0.03246549]
[1756886281464,0.03576714,209.27,209.23,7.67]
[1756886282261,0.03576714,209.27,209.22,0.03246549]
[1756886282462,7.46,209.26,209.23,7.67]
[1756886282656,0.03576714,209.27,209.22,0.03246549]
[1756886283361,0.03576714,209.27,209.23,7.67]
[1756886283758,0.03576714,209.27,209.22,0.03246549]
[1756886283963,0.03576714,209.27,209.23,7.67]
[1756886284365,0.03576714,209.27,209.25,7.67]
[1756886284565,0.03576714,209.27,209.24,2.74382075]
[1756886284965,0.03576714,209.27,209.25,7.67]
[1756886285166,0.03576714,209.27,209.25,2.74382075]
[1756886285368,0.03576714,209.27,209.26,7.67]
[1756886285869,0.03576714,209.27,209.25,7.67]
[1756886286068,0.03576714,209.27,209.23,7.67]
[1756886286371,0.03576714,209.27,209.22,2.77628624]
[1756886286571,0.03576714,209.27,209.23,3.72708333]
[1756886286764,0.03576714,209.27,209.22,2.77628624]
[1756886286965,0.03576714,209.27,209.23,3.7269098]
[1756886287166,0.03576714,209.27,209.23,7.67]
[1756886287667,0.03576714,209.27,209.22,2.77628624]
[1756886287870,0.03576714,209.27,209.23,3.72654103]
[1756886288173,0.03576714,209.27,209.23,7.67]
[1756886290774,0.03576714,209.27,209.25,2.74382075]
[1756886290969,0.03576714,209.27,209.26,7.67]
[1756886297481,0.03576714,209.27,209.26,9.42371268]
[1756886302492,0.03576714,209.27,209.26,13.15020168]
[1756886306396,0.03576714,209.27,209.26,11.396489]
[1756886306586,0.03576714,209.27,209.22,0.03246549]
[1756886306587,7.26576714,209.27,209.22,0.03246549]
[1756886306792,7.26576714,209.27,209.24,9.57371268]
[1756886307489,7.26576714,209.27,209.25,3.72699387]
[1756886307690,7.26576714,209.27,209.26,1.75371268]
[1756886308489,0.03576714,209.27,209.26,9.57371268]
[1756886309895,0.03576714,209.27,209.26,13.30006953]
[1756886310288,0.03576714,209.27,209.26,9.57371268]
[1756886310493,0.03576714,209.27,209.26,13.30003678]
[1756886311296,7.23,209.34,209.27,7.82]
[1756886311596,7.23,209.34,209.32,1.75371268]
[1756886312095,7.23,209.37,209.32,1.75371268]
[1756886312500,1.75371268,209.39,209.32,1.78996658]
[1756886312897,7.23,209.38,209.32,1.78996658]
[1756886313901,7.23,209.41,209.34,1.75371268]
[1756886314308,7.23,209.41,209.36,1.75371268]
[1756886314598,7.23,209.43,209.36,1.75371268]
[1756886314994,7.23,209.43,209.37,1.75371268]
[1756886316397,1.75371268,209.45,209.39,1.75371268]
[1756886316599,7.23,209.44,209.39,1.75371268]
[1756886320097,7.23,209.44,209.38,1.75371268]
[1756886321700,7.23,209.44,209.4,1.75371268]
[1756886321901,7.85,209.45,209.4,1.75371268]
[1756886322205,1.75371268,209.46,209.4,1.75371268]
[1756886322402,7.85,209.45,209.4,1.75371268]
[1756886322602,1.75371268,209.46,209.4,1.78426582]
[1756886322801,7.85,209.45,209.4,1.78426582]
[1756886323306,1.75371268,209.46,209.4,1.78426582]
[1756886323504,7.85,209.45,209.4,1.78426582]
[1756886323701,1.75371268,209.46,209.4,1.78426582]
[1756886323905,7.85,209.46,209.4,1.78426582]
[1756886324805,1.75371268,209.48,209.42,1.75371268]
[1756886325706,7.85,209.47,209.42,1.75371268]
[1756886325903,1.75371268,209.48,209.42,1.75371268]
[1756886326297,1.75371268,209.49,209.42,1.75371268]
[1756886326505,7.85,209.48,209.42,1.75371268]
[1756886326905,7.85,209.48,209.43,0.03628634]
[1756886332006,1.75371268,209.49,209.43,0.03628634]
[1756886332504,7.85,209.48,209.43,0.03628634]
[1756886333405,1.75371268,209.47,209.43,0.03628634]
[1756886333810,7.85,209.46,209.43,0.03628634]
[1756886334008,1.75371268,209.47,209.43,0.03628634]
[1756886334608,7.85,209.46,209.43,0.03628634]
[1756886335208,1.75371268,209.47,209.43,0.03628634]
[1756886335810,7.85,209.46,209.43,0.03628634]
[1756886336014,7.85,209.46,209.44,7.72]
[1756886336510,7.85,209.47,209.43,0.03628634]
[1756886336714,1.75371268,209.48,209.43,0.03628634]
[1756886336915,1.75371268,209.48,209.43,7.75628634]
[1756886337116,7.85,209.47,209.43,7.75628634]
[1756886337808,1.75371268,209.48,209.43,7.75628634]
[1756886338109,7.85,209.47,209.44,7.72]
[1756886338608,1.75371268,209.48,209.44,7.72]
[1756886338814,7.85,209.47,209.44,7.72]
[1756886339013,1.75371268,209.48,209.44,7.72]
[1756886339214,1.75371268,209.48,209.43,0.03628634]
[1756886339412,7.85,209.47,209.43,0.03628634]
[1756886339914,1.75371268,209.48,209.43,7.75628634]
[1756886340111,7.85,209.47,209.43,7.75628634]
[1756886340611,1.75371268,209.48,209.43,7.75628634]
[1756886340812,7.85,209.47,209.43,7.75628634]
[1756886341012,1.75371268,209.48,209.43,7.75628634]
[1756886341412,7.85,209.47,209.43,7.75628634]
[1756886341608,1.75371268,209.48,209.43,7.75628634]
[1756886342719,7.85,209.47,209.43,7.75628634]
[1756886343217,1.75371268,209.48,209.43,7.75628634]
[1756886343417,7.85,209.47,209.43,7.75628634]
[1756886343610,1.75371268,209.48,209.43,7.75628634]
[1756886344022,7.85,209.51,209.44,7.72]
[1756886344212,7.85,209.49,209.44,7.72]
[1756886344812,7.85,209.49,209.44,0.03174815]
[1756886345215,1.75371268,209.5,209.44,0.03174815]
[1756886346117,7.85,209.49,209.44,9.50546083]
[1756886346318,9.60371268,209.5,209.44,9.50546083]
[1756886346721,9.60371268,209.5,209.44,0.03174815]
[1756886350118,9.60371268,209.5,209.44,7.75174815]
[1756886350314,7.85,209.5,209.45,1.75371268]
[1756886350519,7.85,209.51,209.45,7.72]
[1756886350722,1.75371268,209.54,209.47,9.47371268]
[1756886350923,7.85,209.53,209.47,9.47371268]
[1756886351318,7.85,209.53,209.48,0.03131906]
[1756886351622,7.23,209.53,209.48,0.03131906]
[1756886352123,5.32834236,209.55,209.48,0.03131906]
[1756886352320,7.23,209.51,209.48,0.03131906]
[1756886353024,1.75371268,209.52,209.48,0.03131906]
[1756886353419,7.23,209.51,209.48,0.03131906]
[1756886353923,7.23,209.51,209.48,7.60131906]
[1756886355227,7.23,209.54,209.48,0.03131906]
[1756886355625,7.23,209.54,209.48,7.60131906]
[1756886355827,1.75371268,209.54,209.48,9.35503174]
[1756886356024,1.75371268,209.54,209.48,7.60131906]
[1756886356323,1.75371268,209.55,209.49,7.57]
[1756886356624,7.23,209.54,209.49,7.57]
[1756886356927,1.75371268,209.53,209.48,0.03131906]
[1756886357125,1.75371268,209.53,209.48,7.60131906]
[1756886357526,7.23,209.52,209.48,7.60131906]
[1756886358928,1.75371268,209.53,209.48,7.60131906]
[1756886359123,7.96388992,209.56,209.48,7.60131906]
[1756886359124,1.75371268,209.54,209.48,7.60131906]
[1756886359531,7.23,209.55,209.48,7.60131906]
[1756886365029,15.19388992,209.55,209.48,0.03131906]
[1756886369539,7.23,209.51,209.48,0.03131906]
[1756886370036,10.69923478,209.52,209.48,0.03131906]
[1756886370242,7.23,209.51,209.48,0.03131906]
[1756886370439,10.69923478,209.52,209.48,0.03131906]
[1756886370741,7.23,209.51,209.48,0.03131906]
[1756886372243,7.96388992,209.52,209.48,0.03131906]
[1756886372636,7.23,209.51,209.48,0.03131906]
[1756886373144,7.96388992,209.52,209.48,0.03131906]
[1756886373745,7.23,209.51,209.48,0.03131906]
[1756886373946,7.96388992,209.51,209.48,0.03131906]
[1756886374150,7.96388992,209.52,209.48,0.03131906]
[1756886374346,7.23,209.51,209.48,0.03131906]
[1756886374645,10.69923478,209.52,209.48,0.03131906]
[1756886374842,7.23,209.51,209.48,0.03131906]
[1756886375347,10.69923478,209.52,209.48,0.03131906]
[1756886375845,7.23,209.51,209.48,0.03131906]
[1756886376245,10.69923478,209.52,209.48,0.03131906]
[1756886377346,7.23,209.51,209.48,0.03131906]
[1756886377551,10.69923478,209.52,209.48,0.03131906]
[1756886377751,7.23,209.51,209.48,0.03131906]
[1756886378250,7.96388992,209.51,209.48,0.03131906]
[1756886378548,10.69923478,209.52,209.48,0.03131906]
[1756886378747,7.23,209.51,209.48,0.03131906]
[1756886378946,10.69923478,209.52,209.48,0.03131906]
[1756886379348,7.23,209.51,209.48,0.03131906]
[1756886379550,10.69923478,209.52,209.48,0.03131906]
[1756886380047,7.23,209.51,209.48,0.03131906]
[1756886380248,10.69923478,209.52,209.48,0.03131906]
[1756886381046,7.23,209.51,209.48,0.03131906]
[1756886381252,9.96534486,209.49,209.48,0.03131906]
[1756886383050,11.17923478,209.49,209.42,68.86469226]
[1756886383245,7.91,209.45,209.42,68.86469226]
[1756886383451,2.73534486,209.46,209.42,68.86469226]
[1756886383749,7.91,209.45,209.42,68.86469226]
[1756886383946,7.96388992,209.49,209.43,7.59]
[1756886384146,7.91,209.51,209.43,7.59]
[1756886385248,5.3601723,209.5,209.43,7.59]
[1756886390159,7.91,209.49,209.43,7.59]
[1756886390355,5.3601723,209.48,209.43,7.59]
[1756886390557,7.91,209.47,209.43,7.59]
[1756886391454,7.91,209.47,209.38,2.73534486]
[1756886391455,5.3601723,209.48,209.39,7.59]
[1756886391659,5.3601723,209.5,209.42,7.59]
[1756886391958,5.3601723,209.51,209.44,7.59]
[1756886392655,13.2701723,209.52,209.44,7.59]
[1756886394954,5.3601723,209.5,209.44,7.59]
[1756886395151,13.2701723,209.5,209.44,7.59]
[1756886396249,7.91,209.5,209.44,7.59]
[1756886397769,13.2701723,209.5,209.44,7.59]
[1756886398054,7.91,209.5,209.44,7.59]
[1756886399062,13.2701723,209.5,209.44,7.59]
[1756886399361,7.91,209.47,209.44,7.59]
[1756886400162,7.91,209.52,209.31,7.59]
[1756886400362,7.91,209.49,209.38,7.59]
[1756886400571,5.3611,209.44,209.38,7.59]
[1756886400863,13.2711,209.45,209.38,7.59]
[1756886401758,5.3611,209.45,209.3,294.16]
[1756886401958,13.2711,209.44,209.31,7.59]
[1756886402153,7.91,209.44,209.31,7.59]
[1756886402366,5.3611,209.46,209.31,7.59]
[1756886402762,7.91,209.47,209.33,7.59]
[1756886405065,7.91,209.47,209.34,7.59]
[1756886405461,7.91,209.47,209.34,3.9975]
[1756886405656,7.91,209.47,209.35,7.59]
[1756886406568,7.91,209.45,209.35,7.59]
[1756886411062,7.91,209.45,209.35,3.9975]
[1756886411263,7.91,209.45,209.36,7.59]
[1756886412470,13.1711,209.45,209.32,7.46]
[1756886412659,7.81,209.43,209.32,7.46]
[1756886413668,13.1711,209.47,209.32,7.46]
[1756886413868,13.1711,209.47,209.33,7.46]
[1756886415972,5.3611,209.47,209.34,28.0]
[1756886416167,7.81,209.46,209.35,7.46]
[1756886427585,23.7017,209.5,209.32,7.46]
[1756886427586,7.81,209.43,209.32,7.46]
[1756886430685,7.81,209.46,209.36,7.46]
[1756886431384,7.81,209.46,209.39,0.03467101]
[1756886431884,7.81,209.47,209.41,1.75161497]
[1756886432183,13.1711,209.47,209.39,0.03467101]
[1756886432482,13.1711,209.47,209.41,1.75161497]
[1756886432680,7.81,209.47,209.41,1.75161497]
[1756886433384,7.81,209.47,209.39,7.49467101]
[1756886433685,7.81,209.47,209.42,1.75161497]
[1756886433883,7.81,209.47,209.4,1.75161497]
[1756886435883,7.81,209.43,209.39,0.03467101]
[1756886436479,1.75161497,209.44,209.39,0.03467101]
[1756886436678,7.81,209.43,209.39,0.03467101]
[1756886437880,1.75161497,209.44,209.39,0.03467101]
[1756886438077,7.81,209.44,209.39,1.78628598]
[1756886438285,7.81,209.44,209.41,1.75161497]
[1756886438986,7.81,209.47,209.41,1.75161497]
[1756886439385,13.1711,209.47,209.42,1.75161497]
[1756886439686,5.3611,209.47,209.42,1.75161497]
[1756886439886,7.81,209.46,209.42,1.75161497]
[1756886440480,5.3611,209.47,209.42,1.75161497]
[1756886440685,5.3611,209.48,209.42,1.75161497]
[1756886440888,7.81,209.47,209.42,1.75161497]
[1756886441390,7.81,209.47,209.42,1.7837534]
[1756886441588,5.3611,209.48,209.42,1.7837534]
[1756886441788,7.83,209.47,209.42,1.7837534]
[1756886441982,13.1911,209.47,209.42,0.03213843]
[1756886442188,7.83,209.46,209.42,0.03213843]
[1756886442489,5.3611,209.49,209.43,9.67161497]
[1756886442683,0.03057872,209.46,209.43,9.67161497]
[1756886443386,7.86057872,209.46,209.44,1.75161497]
[1756886444986,0.03057872,209.46,209.44,1.75161497]
[1756886445389,7.86057872,209.46,209.44,1.75161497]
[1756886447796,7.86057872,209.46,209.43,1.75161497]
[1756886448293,7.86057872,209.46,209.43,9.67161497]
[1756886449394,0.03057872,209.46,209.43,1.75161497]
[1756886449695,0.03057872,209.46,209.44,7.92]
[1756886452496,0.03057872,209.46,209.45,1.75161497]
[1756886452695,0.03057872,209.46,209.45,9.67161497]
[1756886453492,7.83,209.53,209.45,9.67161497]
[1756886453699,7.83,209.53,209.5,1.75161497]
[1756886453898,5.3611,209.55,209.49,1.75161497]
[1756886454599,7.83,209.54,209.49,1.75161497]
[1756886454799,5.3611,209.55,209.5,0.03073476]
[1756886455293,7.83,209.54,209.5,0.03073476]
[1756886455597,5.3611,209.55,209.5,0.03073476]
[1756886455798,7.83,209.54,209.5,0.03073476]
[1756886456399,5.3611,209.56,209.5,0.03073476]
[1756886456698,7.83,209.55,209.5,0.03073476]
[1756886456897,5.3611,209.56,209.5,0.03073476]
[1756886457494,7.83,209.55,209.51,9.67161497]
[1756886457795,7.83,209.56,209.51,1.75161497]
[1756886457995,10.3611,209.57,209.51,1.75161497]
[1756886458297,18.1911,209.57,209.51,1.75161497]
[1756886460899,7.83,209.56,209.55,1.75161497]
[1756886461400,5.0,209.57,209.55,1.75161497]
[1756886461798,12.83,209.57,209.55,1.75161497]
[1756886467504,5.0,209.57,209.56,7.92]
[1756886469003,5.0,209.57,209.56,8.4]
[1756886469312,42.08,209.65,209.56,10.15161497]
[1756886469510,7.83,209.64,209.62,1.75161497]
[1756886471612,7.2,209.64,209.62,1.75161497]
[1756886472404,7.2,209.64,209.61,0.03534698]
[1756886472610,7.2,209.64,209.61,1.78696195]
[1756886472907,42.08,209.65,209.61,1.78696195]
[1756886473108,7.2,209.64,209.61,1.78696195]
[1756886473802,42.08,209.65,209.61,1.78696195]
[1756886474008,7.2,209.64,209.61,1.78696195]
[1756886475213,7.2,209.64,209.61,8.99696195]
[1756886475507,300.93161497,209.68,209.63,1.75161497]
[1756886475508,5.0,209.68,209.63,1.75161497]
[1756886476401,7.2,209.67,209.63,1.75161497]
[1756886476604,5.0,209.68,209.63,1.75161497]
[1756886477209,7.2,209.67,209.63,1.75161497]
[1756886477408,5.0,209.68,209.63,1.75161497]
[1756886478006,7.2,209.67,209.63,1.75161497]
[1756886478208,5.0,209.68,209.63,1.75161497]
[1756886478910,7.2,209.67,209.63,1.75161497]
[1756886479910,5.0,209.68,209.63,1.75161497]
[1756886480112,7.2,209.67,209.63,1.75161497]
[1756886480915,7.2,209.67,209.61,0.03534698]
[1756886481116,7.2,209.67,209.61,1.78696195]
[1756886482209,5.0,209.68,209.63,1.75161497]
[1756886482413,7.2,209.67,209.65,1.75161497]
[1756886482614,7.2,209.67,209.64,7.21]
[1756886482814,7.2,209.67,209.63,1.75161497]
[1756886483303,5.0,209.68,209.63,1.75161497]
[1756886483505,5.0,209.68,209.62,7.21]
[1756886483913,12.2,209.68,209.62,7.21]
[1756886487918,12.2,209.68,209.64,7.21]
[1756886488116,5.0,209.68,209.66,2.73142609]
[1756886488317,5.0,209.68,209.67,7.21]
[1756886489521,5.0,209.68,209.67,7.69]
[1756886489723,5.0,209.68,209.67,7.21]
[1756886489918,5.0,209.68,209.67,7.69]
[1756886490426,7.2,209.75,209.67,10.42142609]
[1756886490616,7.2,209.75,209.67,9.94142609]
[1756886494434,7.2,209.75,209.67,2.73142609]
[1756886494731,7.2,209.75,209.68,7.21]
[1756886495329,7.2,209.75,209.7,2.73142609]
[1756886495522,7.2,209.8,209.71,7.21]
[1756886495728,7.2,209.8,209.73,2.73142609]
[1756886496126,7.2,209.8,209.74,0.0311294]
[1756886498942,91.46,209.83,209.74,0.0311294]
[1756886500944,7.2,209.82,209.74,0.0311294]
[1756886505339,7.81,209.82,209.77,2.73142609]
[1756886505536,7.81,209.82,209.74,0.0311294]
[1756886507341,7.81,209.82,209.74,7.8611294]
[1756886508750,7.81,209.82,209.74,0.0311294]
[1756886510046,7.81,209.82,209.74,7.8611294]
[1756886513246,7.81,209.84,209.76,2.73142609]
[1756886513943,7.81,209.84,209.78,0.03155572]
[1756886514144,7.81,209.84,209.78,7.86155572]
[1756886515648,7.81,209.84,209.78,0.03155572]
[1756886518349,7.81,209.84,209.78,7.86155572]
[1756886519848,7.81,209.84,209.78,10.59298181]
[1756886520544,7.81,209.84,209.78,0.03155572]
[1756886523749,10.54142609,209.84,209.78,0.03155572]
[1756886524855,7.81,209.84,209.78,0.03155572]
[1756886531164,7.81,209.84,209.78,7.86155572]
[1756886532063,7.81,209.84,209.78,0.03155572]
[1756886532758,7.81,209.84,209.78,7.55155572]
[1756886532954,7.81,209.84,209.78,10.28298181]
[1756886533154,7.33,209.88,209.81,2.73142609]
[1756886533759,7.33,209.88,209.82,0.03161913]
[1756886534654,12.6911,209.88,209.82,0.03161913]
[1756886534860,7.33,209.88,209.82,0.03161913]
[1756886535159,12.6911,209.88,209.82,0.03161913]
[1756886535359,7.33,209.86,209.82,0.03161913]
[1756886535555,7.33,209.86,209.76,2.73142609]
[1756886535960,7.33,209.86,209.74,7.52]
[1756886536164,5.3611,209.85,209.74,7.52]
[1756886536367,7.33,209.84,209.74,7.52]
[1756886537057,7.33,209.84,209.76,10.25142609]
[1756886537258,12.6911,209.84,209.76,10.25142609]
[1756886537457,7.33,209.84,209.76,7.52]
[1756886538462,12.6911,209.88,209.81,7.52]
[1756886539168,7.33,209.88,209.81,7.52]
[1756886539471,12.6911,209.88,209.81,7.52]
[1756886540269,7.33,209.88,209.81,7.52]
[1756886540567,7.33,209.88,209.82,0.03024441]
[1756886541568,5.3611,209.89,209.83,2.73142609]
[1756886541768,5.3611,209.89,209.82,2.7616705]
[1756886542270,7.33,209.9,209.82,2.7616705]
[1756886542468,7.33,209.9,209.82,0.03024441]
[1756886542663,7.33,209.9,209.82,2.7616705]
[1756886543665,7.33,209.9,209.83,7.52]
[1756886544265,5.3611,209.92,209.86,7.52]
[1756886544466,12.6911,209.93,209.86,7.52]
[1756886545070,7.33,209.93,209.86,7.52]
[1756886545567,7.33,209.93,209.89,1.74385984]
[1756886545870,5.3611,209.94,209.89,1.74385984]
[1756886546070,7.33,209.93,209.89,1.74385984]
[1756886546570,5.3611,209.94,209.89,1.77426631]
[1756886546768,7.33,209.93,209.89,1.77426631]
[1756886546970,5.3611,209.94,209.89,1.77426631]
[1756886547167,12.6911,209.94,209.89,1.77426631]
[1756886547670,7.10495984,209.94,209.89,0.03040647]
[1756886547868,7.33,209.93,209.89,0.03040647]
[1756886548171,7.33,209.91,209.85,1.74385984]
[1756886554073,5.3611,209.92,209.87,1.74385984]
[1756886554376,7.33,209.91,209.86,1.74385984]
[1756886554575,5.3611,209.92,209.86,1.74385984]
[1756886554871,7.33,209.91,209.86,1.74385984]
[1756886555174,7.33,209.92,209.86,1.74385984]
[1756886558580,7.33,209.92,209.83,7.52]
[1756886558581,7.33,209.92,209.85,1.74385984]
[1756886559883,7.33,209.92,209.88,7.52]
[1756886560077,7.33,209.92,209.87,1.74385984]
[1756886560381,7.33,209.93,209.87,1.74385984]
[1756886560681,7.33,209.91,209.87,1.74385984]
[1756886560880,0.03054119,209.92,209.87,1.74385984]
[1756886561081,7.33,209.91,209.84,7.52]
[1756886561381,7.33,209.91,209.85,1.74385984]
[1756886564884,7.33,209.91,209.87,1.74385984]
[1756886565285,7.33,209.91,209.87,9.23385984]
[1756886565685,7.58,209.91,209.87,9.23385984]
[1756886567293,7.58,209.91,209.89,1.74385984]
[1756886567589,7.58,209.94,209.89,1.74385984]